Cogmind - Beta 16 @@@ ROGUE MODE // 2025.12.18 @ 21:17:55 Player: PE-P51 Result: Self-destructed Performance ------------- Evolutions (3) 1500 Regions Visited (10) 2000 Robots Destroyed (151) 755 Value Destroyed (4272) 4272 Prototype IDs (237) 4740 Alien Tech Used (0) 0 Bonus (3854) 3854 TOTAL SCORE: 17121 Bonus ------- High Alert Combat Kills 254 Aligned with FarCom 300 Met Data Miner 300 Used Data Conduit 3000 Cogmind --------- Core Integrity 179/700 Matter 295/300 Energy 100/100 System Corruption 3% Temperature Cool (9) Movement Flying (120) Ox1 Location -6/Proximity Caves Parts ------- > --- POWER (1) -------- (None) > --- PROPULSION (4) --- Flight Unit > --- UTILITY (6) ------ Lightpack 2.0 Hacking Suite System Shield > --- WEAPON (2) ------- Spear > --- INVENTORY (40) --- Improved Deuterium Engine Improved Deuterium Engine Micro Nuclear Core Light Angular Momentum Engine Light Fission Core Gravmag Array Flight Unit Flight Unit Improved Terrain Scanner Launcher Guidance Computer Makeshift ECM Suite Improved Light Armor Plating Hacking Suite Hacking Suite System Mapper Ghost Barrier Quantum Router System Restoration Module System Restoration Module Improved EM Pulse Cannon Gauss Rifle Gauss Rifle Gauss Cannon Mini Grenade Launcher Remote Datajack Dirty Bomb Trap Dirty Bomb Trap DRS Beacon (Ready) Peak State ------------ > --- POWER ------------ Light Deuterium Engine > --- PROPULSION ------- Cooled VTOL Module Cooled VTOL Module Cooled VTOL Module Cooled VTOL Module > --- UTILITY ---------- Lightpack 2.0 Advanced Visual Processing Unit Hacking Suite System Shield > --- WEAPON ----------- Gauss Rifle Spear > --- INVENTORY -------- Backup Power III Light Nuclear Core Flight Unit Flight Unit Flight Unit VTOL Module Xenon Bombardment Thruster Improved Terrain Scanner Launcher Guidance Computer Improved Light Armor Plating Improved Shield Generator Hacking Suite Hacking Suite System Restoration Module System Restoration Module Improved EM Pulse Cannon Gauss Rifle Gauss Cannon Proton Missile Launcher Mini Grenade Launcher Missile Launcher Remote Datajack Katana [Rating: 77] Favorites ----------- Power Ion Engine Engine Ion Engine Power Core Light Nuclear Core Propulsion Wheel Treads Medium Treads Leg Aluminum Leg Wheel Wheel Flight Unit Cooled VTOL Module Utility Cargo Storage Unit Device Improved Heat Sink Storage Cargo Storage Unit Processor Advanced Visual Processing Unit Hackware Hacking Suite Protection Improved Medium Armor Plating Weapon Beam Cannon Energy Gun Particle Gun Energy Cannon Beam Cannon Ballistic Gun Minigun Ballistic Cannon Improved Light Cannon Launcher Grenade Launcher Impact Weapon Heavy Mace Slashing Weapon Katana Piercing Weapon Spear Build | -11 -10 -10 -10 -9 -8 -7 -7 -7 -7 -6 ------- Run | Yrd Mat Min Exi Min Mat Fac Low Low Dat Pro Slots Evolved 6 | . . . . . 4 2 . . . . Power . | . . . . . . . . . . . Propulsion 2 | . . . . . 2 . . . . . Utility 4 | . . . . . 2 2 . . . . Weapon . | . . . . . . . . . . . Parts Attached 105 | . 14 . 1 1 62 21 2 4 . . Power 16 | . 2 . . . 8 3 2 1 . . Engine 10 | . 2 . . . 4 1 2 1 . . Core 6 | . . . . . 4 2 . . . . Reactor . | . . . . . . . . . . . Propulsion 31 | . 2 . . 1 17 9 . 2 . . Treads 6 | . . . . . 6 . . . . . Leg 2 | . . . . . 2 . . . . . Wheel 12 | . 2 . . 1 9 . . . . . Hover . | . . . . . . . . . . . Flight 11 | . . . . . . 9 . 2 . . Utility 28 | . 4 . 1 . 18 5 . . . . Device 10 | . 1 . . . 8 1 . . . . Storage 6 | . 2 . 1 . 2 1 . . . . Processor 2 | . 1 . . . . 1 . . . . Hackware 2 | . . . . . . 2 . . . . Protection 8 | . . . . . 8 . . . . . Artifact . | . . . . . . . . . . . Weapon 30 | . 6 . . . 19 4 . 1 . . Energy Gun 5 | . 1 . . . 4 . . . . . Energy Cannon 2 | . 2 . . . . . . . . . Ballistic Gun 10 | . 1 . . . 8 1 . . . . Ballistic Cannon 1 | . . . . . 1 . . . . . Launcher 6 | . 2 . . . 2 2 . . . . Special Weapon . | . . . . . . . . . . . Impact Weapon 2 | . . . . . 2 . . . . . Slashing Weapon 3 | . . . . . 1 1 . 1 . . Piercing Weapon 1 | . . . . . 1 . . . . . Special Melee Weapon . | . . . . . . . . . . . Unidentified Prototypes 4 | . . . . . 1 3 . . . . Corrupted Parts 1 | . . . . . 1 . . . . . System Corruption 3 | . . . . . 3 . . . . . Parts Lost 45 | . 1 1 . . 27 1 2 7 5 1 Power 9 | . 1 1 . . 3 1 1 1 1 . Propulsion 22 | . . . . . 14 . 1 3 3 1 Utility 7 | . . . . . 6 . . . 1 . Weapon 7 | . . . . . 4 . . 3 . . Highest Loss Streak 6 | . 1 1 . . 6 1 1 3 5 1 To Critical Strikes . | . . . . . . . . . . . Average Backups 19 | 6 18 22 20 27 17 16 22 21 23 25 Power 1 | 1 1 1 . 1 . 1 1 2 4 5 Propulsion 4 | 4 4 5 4 7 4 4 4 3 3 3 Utility 7 | . 6 8 8 10 5 4 8 8 9 11 Weapon 6 | 1 6 8 6 8 5 5 7 5 5 5 Tool/Special . | . . . . . . . . . . . Unused Backups 43 | . 3 . . . 21 . . 1 . 18 Power 5 | . 1 . . . 1 . . . . 3 Propulsion 6 | . . . . . 5 . . . . 1 Utility 20 | . 1 . . . 8 . . 1 . 10 Weapon 9 | . 1 . . . 5 . . . . 3 Tool/Special 3 | . . . . . 2 . . . . 1 Average Slot Usage (%) 83 | . 86 84 85 85 82 83 83 79 70 46 Engine 9 | . 13 13 14 14 7 5 2 6 . . Treads 1 | . . . . . 3 . . . . . Leg 1 | . 9 . . . . . . . . . Wheel 19 | . 18 28 28 28 26 . . . . . Flight 6 | . . . . . . 29 30 29 27 15 Device 1 | . . . . . 5 . . . . . Storage 10 | . 14 14 14 14 8 7 7 7 7 7 Processor 1 | . . . . . . 6 7 7 5 . Hackware 3 | . . . . . . 14 15 15 15 15 Protection 3 | . . . . . 12 . . . . . Energy Gun 1 | . . . . . 4 . . . . . Energy Cannon 8 | . 19 14 14 14 1 . . . . . Ballistic Gun 3 | . 1 . . . 7 3 . . . . Launcher 6 | . 6 13 14 14 1 2 6 3 . . Piercing Weapon 1 | . . . . . . 6 . 2 7 7 Peak Build Rating 77 | 6 9 9 12 14 39 77 76 76 72 54 Average Rating 28 | 6 8 8 10 12 24 71 75 70 66 54 On Entrance 31 | 6 6 9 9 12 14 21 75 76 67 54 Avg Prop Armor Cover (%) 8 | . 8 . . . 8 . . . . . Naked Turns . | . . . . . . . . . . . Heaviest Build 214 | 13 151 151 211 211 214 21 19 18 12 7 Greatest Support 112 | 20 20 20 20 26 112 28 21 20 18 8 Greatest Overweight (x) 15 | . 15 7 10 10 11 1 . . . . Average Overweight (x) 2 | . 8 7 7 8 1 . . . . . Largest Inventory Capacity 40 | 8 30 30 35 35 35 40 40 40 40 40 Average Capacity 29 | 8 27 30 30 35 19 39 40 40 40 40 Most Carried 35 | 6 23 24 26 31 35 24 25 27 30 29 Average Carried 21 | 6 18 22 21 29 19 16 23 24 27 29 Final Capacity 40 | 8 30 30 35 35 15 40 40 40 40 40 Final Carried 31 | 6 23 23 26 31 15 23 25 24 29 29 Class Distribution -------------------- 53% | Hauler-Mutant 23% | Mutant 21% | Hauler-Sprinter Dominant Class ---------------- Hauler-Mutant | -10/Materials Hauler-Mutant | -10/Mines Hauler-Mutant | -10/Exiles Hauler-Mutant | -9/Mines Mutant | -8/Materials Hauler-Sprinter | -7/Factory Hauler-Sprinter | -7/Lower Caves Hauler-Sprinter | -7/Lower Caves Hauler-Sprinter | -7/Data Miner Hauler-Mutant | -6/Proximity Caves Resources | -11 -10 -10 -10 -9 -8 -7 -7 -7 -7 -6 ----------- Run | Yrd Mat Min Exi Min Mat Fac Low Low Dat Pro Matter Collected 3916 | 200 259 200 407 100 1964 423 183 164 16 . Remotely . | . . . . . . . . . . . Salvage Created 4333 | . 406 65 . 55 2205 947 436 199 20 . Parts 243 | . 45 1 . 4 101 58 17 12 5 . Haulers Intercepted 6 | . 1 . . . 4 1 . . . . Recyclers Shooed 4 | . 1 . . . 1 2 . . . . Parts Field Recycled . | . . . . . . . . . . . Retrieved Matter . | . . . . . . . . . . . Parts Self-Destructed 19 | . . . . . . . 10 9 . . Prevented 5 | . . . . . . . 5 . . . Parts Restored . | . . . . . . . . . . . Kills | -11 -10 -10 -10 -9 -8 -7 -7 -7 -7 -6 ------- Run | Yrd Mat Min Exi Min Mat Fac Low Low Dat Pro Combat Hostiles Destroyed 108 | . 18 12 . 5 47 10 9 7 . . Melee 13 | . . . . . 5 3 2 3 . . Guns 21 | . 2 . . . 19 . . . . . Cannons 6 | . 1 2 . . 3 . . . . . AOE 67 | . 15 10 . 5 19 7 7 4 . . Classes Destroyed 18 | . 8 2 . . 5 2 1 . . . Worker 10 | . 1 . . . 5 4 . . . . Builder 9 | . 5 . . . 3 1 . . . . Tunneler 2 | . . . . . 1 1 . . . . Hauler 6 | . 1 . . . 4 1 . . . . Recycler 9 | . 1 . . . 4 4 . . . . Minesweeper 1 | . . . . . . . 1 . . . Mechanic 1 | . . . . . . 1 . . . . Operator 5 | . 1 . . . 2 2 . . . . Watcher 8 | . 3 . . . 3 2 . . . . Swarmer 34 | . 9 . . 3 7 7 3 5 . . Grunt 42 | . 9 1 . 2 25 . 5 . . . Sentry 10 | . . . . . 8 1 . 1 . . Demolisher 2 | . . 2 . . . . . . . . Specialist 4 | . . . . . 4 . . . . . Hunter 3 | . . . . . 2 . . 1 . . Programmer 3 | . . . . . . 2 1 . . . Heavy 1 | . . . . . 1 . . . . . Decomposer 1 | . . . . . . . . 1 . . Packrat 1 | . . . . . . . 1 . . . Assembled 10 | . . 10 . . . . . . . . Best Kill Streak 10 | . 9 10 . 3 8 5 3 4 1 . Combat Bots Only 10 | . 4 10 . 3 5 4 3 4 . . Max Kills in Single Turn 6 | . 3 2 . 2 3 6 2 2 1 . Gunslinging . | . . . . . . . . . . . Exploded 4 | . 2 2 . 2 3 4 2 2 . . Melee 1 | . . . . . 1 1 1 1 . . Uniques/NPCs Destroyed 1 | . . . . . . . . . 1 . Data Miner (-7/Data Miner) Combat | -11 -10 -10 -10 -9 -8 -7 -7 -7 -7 -6 -------- Run | Yrd Mat Min Exi Min Mat Fac Low Low Dat Pro Hostile Shots Fired 623 | . 84 5 . 4 336 56 41 77 18 2 Missed 220 | . 35 1 . 2 93 22 21 38 7 1 Hits 403 | . 49 4 . 2 243 34 20 39 11 1 Projectile 403 | . 49 4 . 2 243 34 20 39 11 1 AOE 4 | . . 4 . . . . . . . . Critical Strikes 11 | . . . . . 9 2 . . . . Part Disruptions 2 | . . . . . . . . 2 . . Damage Taken 7073 | . 577 192 . 36 4530 487 233 488 506 24 Core 1233 | . 119 81 . 27 485 104 43 126 248 . Absorbed by Shields 23 | . . . . . . 23 . . . . Regen/Repaired (Parts) 210 | . . . . . 210 . . . . . Core Remaining (%) 40 | 100 . . . 9 11 . . . . . Volleys Fired 278 | . 66 12 . 8 162 12 13 5 . . Largest 2 | . 2 2 . 1 2 1 1 1 . . Hottest 134 | . 120 120 . 30 134 39 39 36 . . Shots Fired 404 | . 73 14 . 8 277 12 15 5 . . Gun 220 | . 12 . . . 200 8 . . . . Cannon 84 | . 38 4 . . 42 . . . . . Launcher 100 | . 23 10 . 8 35 4 15 5 . . Special . | . . . . . . . . . . . Kinetic 193 | . 12 . . . 173 8 . . . . Thermal 111 | . 38 4 . . 69 . . . . . Explosive 87 | . 23 10 . 8 35 . 6 5 . . Electromagnetic 13 | . . . . . . 4 9 . . . Robot Hit Streak 15 | . 11 6 . 3 15 2 1 . . . Robot Miss Streak 5 | . 2 1 . 1 5 2 1 . . . Penetration Max . | . . . . . . . . . . . Secondary Targets . | . . . . . . . . . . . Shots Hit Robots 313 | . 45 7 . 1 206 34 7 11 2 . Core Hits 238 | . 35 24 . 8 121 25 15 8 2 . Critical Kills 1 | . . . . . 1 . . . . . Critical Parts Destroyed 3 | . 1 . . . 2 . . . . . Critical Strikes 14 | . 1 . . . 5 4 1 2 1 . Burn 2 | . . . . . 2 . . . . . Destroy 3 | . 1 . . . 2 . . . . . Smash 1 | . . . . . 1 . . . . . Sever 4 | . . . . . . 1 1 2 . . Impale 4 | . . . . . . 3 . . 1 . Melee Attacks 127 | . . . . . 23 66 11 25 2 . Impact 3 | . . . . . 3 . . . . . Slashing 39 | . . . . . 10 5 11 13 . . Piercing 85 | . . . . . 10 61 . 12 2 . Sneak Attacks 26 | . . . . . 8 14 1 2 1 . Combat Hostiles 1 | . . . . . . . . 1 . . Follow-up Attacks 2 | . . . . . . 2 . . . . Damage Inflicted 13186 | . 1989 538 . 368 6253 2003 925 968 142 . Guns 2472 | . 147 . . . 2325 . . . . . Cannons 1169 | . 455 70 . . 644 . . . . . Explosions 6428 | . 1387 468 . 332 2650 444 650 497 . . Melee 3079 | . . . . . 632 1559 275 471 142 . Ramming 38 | . . . . 36 2 . . . . . Kinetic 2215 | . 147 . . . 2068 . . . . . Thermal 1645 | . 455 70 . . 901 219 . . . . Explosive 5740 | . 1387 468 . 332 2650 . 406 497 . . Electromagnetic 469 | . . . . . . 225 244 . . . Impact 126 | . . . . . 126 . . . . . Slashing 1061 | . . . . . 341 103 275 342 . . Piercing 1892 | . . . . . 165 1456 . 129 142 . Highest Corruption 3 | . . . . . 3 3 3 3 3 3 Average Corruption 2 | . . . . . 1 2 3 3 3 3 Corruption Purged 1 | . . . . . 1 . . . . . Corruption Blocked . | . . . . . . . . . . . Effects 53 | . . . . . 17 13 9 13 . 1 Message Errors 15 | . . . . . 5 2 3 4 . 1 Matter Fused 11 | . . . . . 4 3 1 3 . . Heat Flow Errors 7 | . . . . . 1 1 1 4 . . Energy Discharges 3 | . . . . . 1 1 . 1 . . Parts Rejected 3 | . . . . . 1 2 . . . . Data Loss (minor) 8 | . . . . . 3 3 1 1 . . Data Loss (major) 2 | . . . . . 1 . 1 . . . Misfires 2 | . . . . . . . 2 . . . Alerts 1 | . . . . . . 1 . . . . Weapon Failures 1 | . . . . . 1 . . . . . Overload Shots . | . . . . . . . . . . . Overflow Damage 737 | . 55 20 . 21 279 251 56 55 . . Projectiles 15 | . 15 . . . . . . . . . Explosions 225 | . 40 20 . 5 118 . . 42 . . Melee 497 | . . . . 16 161 251 56 13 . . Knockbacks 4 | . . . . . 4 . . . . . Impact . | . . . . . . . . . . . Kinetic 3 | . . . . . 3 . . . . . Secondary 1 | . . . . . 1 . . . . . Self-Inflicted Damage 138 | . 68 27 . 18 12 13 . . . . Shots 9 | . 5 2 . . 1 1 . . . . Rammed 3 | . . . . 1 2 . . . . . Targets Rammed 3 | . . . . 1 2 . . . . . Kicked . | . . . . . . . . . . . Crushed . | . . . . . . . . . . . Highest Temperature 411 | . 240 90 . . 411 101 156 238 . . Average Temperature 62 | . 72 45 . . 54 50 56 82 . . Received Heat Transfer 2142 | . 201 . . . 1710 18 72 132 . 9 Effects 4 | . 1 . . . 3 . . . . . Interference 4 | . 1 . . . 3 . . . . . Siege Activations . | . . . . . . . . . . . Martial Activations . | . . . . . . . . . . . Shielding Activations . | . . . . . . . . . . . Robots Disrupted . | . . . . . . . . . . . Combat Hostiles . | . . . . . . . . . . . Robots Corrupted 1 | . . . . . 1 . . . . . Combat Hostiles 1 | . . . . . 1 . . . . . Parts Fried 2 | . . . . . 1 1 . . . . Impact Corruptions 2 | . . . . 1 1 . . . . . Robots Melted . | . . . . . . . . . . . Combat Hostiles . | . . . . . . . . . . . Parts Melted 5 | . 4 . . . 1 . . . . . Heat Transferred 3382 | . 962 148 . . 2072 200 . . . . Parts Sabotaged . | . . . . . . . . . . . Parts Stolen . | . . . . . . . . . . . Parts Stripped . | . . . . . . . . . . . Power Chain Reactions 3 | . . . . . . 3 . . . . Alert | -11 -10 -10 -10 -9 -8 -7 -7 -7 -7 -6 ------- Run | Yrd Mat Min Exi Min Mat Fac Low Low Dat Pro Maximum Alert Level 3 | . 1 . . . 3 1 . . . . Low Security (%) 54 | 100 47 100 . 100 35 50 . . . . Level 1 27 | . 52 . . . 17 49 . . . . Level 2 16 | . . . . . 44 . . . . . Level 3 1 | . . . . . 2 . . . . . Level 4 . | . . . . . . . . . . . Level 5 . | . . . . . . . . . . . High Security . | . . . . . . . . . . . Max Security . | . . . . . . . . . . . Peak Influence 724 | . 318 115 . 126 724 369 . . . . Initial 329 | . . 111 . . 31 329 . . . . Average 222 | . 178 61 . 20 364 209 . . . . Influence Increases 3954 | . 858 107 . 223 1685 536 305 220 20 . Destroy 0b10 Robot/C 1980 | . 360 40 . 100 940 200 180 140 20 . Destroy 0b10 Robot/NC 250 | . 60 . . . 110 75 5 . . . Destroy Leader 468 | . 78 10 . 20 264 46 30 20 . . Allied During Kill 7 | . . 3 . 4 . . . . . . Successful Hack 87 | . 26 . . . 9 52 . . . . Select Force Hacks 60 | . 60 . . . . . . . . . Disable Machine 375 | . 135 . . 75 90 75 . . . . Destroy Structure 427 | . 79 54 . 24 227 43 . . . . Partial Spotted 45 | . 15 . . . . 30 . . . . Lose Combat Pursuer 255 | . 45 . . . 45 15 90 60 . . Influence Decreases 3954 | . 572 393 . 143 1041 891 403 345 166 . Entered New Map 955 | . . 175 . . 49 395 137 53 146 . Time Decay 2569 | . 562 208 . 123 712 486 246 222 10 . Lost Part 400 | . 10 10 . . 270 10 20 70 10 . Lost Ally 30 | . . . . 20 10 . . . . . Squads Dispatched 32 | . 3 . . . 14 15 . . . . Investigation 14 | . 3 . . . 6 5 . . . . Extermination 5 | . . . . . . 5 . . . . Reinforcement 13 | . . . . . 8 5 . . . . Assault . | . . . . . . . . . . . Garrison . | . . . . . . . . . . . Intercept . | . . . . . . . . . . . Searches Triggered . | . . . . . . . . . . . Construction Impeded 3 | . . . . . 1 2 . . . . Haulers Reinforced 1 | . . . . . . 1 . . . . Active Scanning Responses . | . . . . . . . . . . . Cargo Convoy Interrupts . | . . . . . . . . . . . Stealth | -11 -10 -10 -10 -9 -8 -7 -7 -7 -7 -6 --------- Run | Yrd Mat Min Exi Min Mat Fac Low Low Dat Pro Distress Signals 7 | . 2 . . . 5 . . . . . Communications Jammed . | . . . . . . . . . . . Distress Signals . | . . . . . . . . . . . Times Spotted 181 | . 28 14 . 5 77 22 15 11 4 5 Peak Tracking Total 7 | . 5 4 . 2 6 4 3 5 4 7 Tactical Retreats 13 | . 1 . . . 3 1 4 4 . . Traps | -11 -10 -10 -10 -9 -8 -7 -7 -7 -7 -6 ------- Run | Yrd Mat Min Exi Min Mat Fac Low Low Dat Pro Traps Triggered 7 | . . . . . 1 5 . 1 . . Indirectly . | . . . . . . . . . . . Trap Hack Attempts . | . . . . . . . . . . . Triggered . | . . . . . . . . . . . Disarmed 9 | . 9 . . . . . . . . . Reprogrammed . | . . . . . . . . . . . Reused . | . . . . . . . . . . . Traps Extracted . | . . . . . . . . . . . Installed . | . . . . . . . . . . . Triggered . | . . . . . . . . . . . Most Traps Carried 2 | . . . . . . . 2 2 2 2 Machines | -11 -10 -10 -10 -9 -8 -7 -7 -7 -7 -6 ---------- Run | Yrd Mat Min Exi Min Mat Fac Low Low Dat Pro Machines Disabled 25 | . 9 . . 5 6 5 . . . . Max in Single Turn 4 | . 1 . . 4 1 4 . . . . Garrison Access 1 | . . . . . 1 . . . . . Machines Repaired . | . . . . . . . . . . . Machines Dismantled . | . . . . . . . . . . . Machines Sabotaged . | . . . . . . . . . . . Overloaded Fab Kills . | . . . . . . . . . . . Hacking | -11 -10 -10 -10 -9 -8 -7 -7 -7 -7 -6 --------- Run | Yrd Mat Min Exi Min Mat Fac Low Low Dat Pro Machines Accessed 40 | . 10 . 2 . 11 16 . 1 . . Terminals 27 | . 8 . . . 6 12 . 1 . . Fabricators 1 | . . . . . . 1 . . . . Repair Stations 2 | . . . . . 1 1 . . . . Recycling Units 3 | . 2 . . . 1 . . . . . Scanalyzers 3 | . . . . . 2 1 . . . . Garrison Access 2 | . . . . . 1 1 . . . . Total Hacks 118 | . 28 . 5 . 30 54 . 1 . . Successful 68 | . 16 . 5 . 19 27 . 1 . . Failed 49 | . 12 . . . 11 26 . . . . Catastrophic 12 | . 2 . . . 1 9 . . . . Database Lockouts 1 | . . . . . . 1 . . . . Manual 62 | . 24 . 1 . 15 22 . . . . Terminals 77 | . 26 . . . 18 32 . 1 . . Fabricators 3 | . . . . . . 3 . . . . Repair Stations 7 | . . . . . 6 1 . . . . Recycling Units 3 | . 2 . . . 1 . . . . . Scanalyzers 21 | . . . . . 4 17 . . . . Garrison Access 2 | . . . . . 1 1 . . . . Terminal Hacks 14 | . 5 . 5 . 2 1 . 1 . . Record 5 | . . . 4 . . . . 1 . . Open DSF 1 | . . . . . . 1 . . . . Branch Access Points 1 | . . . . . 1 . . . . . Locate Traps 1 | . 1 . . . . . . . . . Disarm Traps 3 | . 3 . . . . . . . . . Recall Investigation 1 | . . . . . 1 . . . . . Hauler Manifests 1 | . 1 . . . . . . . . . Proto ID Catalog 1 | . . . 1 . . . . . . . Fabricator Hacks . | . . . . . . . . . . . Repair Station Hacks 7 | . . . . . 6 1 . . . . Scan Component 3 | . . . . . 3 . . . . . Repair 3 | . . . . . 3 . . . . . Refit 1 | . . . . . . 1 . . . . Recycling Unit Hacks 1 | . . . . . 1 . . . . . Retrieve Components 1 | . . . . . 1 . . . . . Scanalyzer 20 | . . . . . 4 16 . . . . Insert Component 9 | . . . . . 2 7 . . . . Analyze 10 | . . . . . 2 8 . . . . Retrieve Study 1 | . . . . . . 1 . . . . Garrison Access Hacks 1 | . . . . . 1 . . . . . Seal Access 1 | . . . . . 1 . . . . . Unauthorized Hacks 25 | . 11 . . . 5 9 . . . . Terminals 23 | . 9 . . . 5 9 . . . . Assimilate 2 | . . . . . 1 1 . . . . Botnet 15 | . 6 . . . 3 6 . . . . Skim 6 | . 3 . . . 1 2 . . . . Fabricators . | . . . . . . . . . . . Repair Stations . | . . . . . . . . . . . Recycling Units 2 | . 2 . . . . . . . . . Tunnel 2 | . 2 . . . . . . . . . Scanalyzers . | . . . . . . . . . . . Garrison Access . | . . . . . . . . . . . Data Cores Recovered 1 | . 1 . . . . . . . . . Used . | . . . . . . . . . . . Hacking Detections 32 | . 8 . . . 9 15 . . . . Full Trace Events 11 | . 1 . . . 5 5 . . . . Feedback Events 1 | . . . . . 1 . . . . . Corruption 1 | . . . . . 1 . . . . . Feedback Blocked . | . . . . . . . . . . . Robot Schematics Acquired . | . . . . . . . . . . . Robots Built . | . . . . . . . . . . . Authchips . | . . . . . . . . . . . Time . | . . . . . . . . . . . Total Robot Build Rating . | . . . . . . . . . . . Part Schematics Acquired 7 | . . . . . 2 5 . . . . Parts Built . | . . . . . . . . . . . Authchips . | . . . . . . . . . . . Time . | . . . . . . . . . . . Total Part Build Rating . | . . . . . . . . . . . Part Studies Acquired 1 | . . . . . . 1 . . . . Parts Repaired 3 | . . . . . 3 . . . . . Time 108 | . . . . . 108 . . . . . Parts Recycled . | . . . . . . . . . . . Recycled Matter . | . . . . . . . . . . . Retrieved Matter . | . . . . . . . . . . . Retrieved Components 2 | . . . . . 2 . . . . . Parts Scanalyzed 8 | . . . . . 2 6 . . . . Part Schematics Acquired 7 | . . . . . 2 5 . . . . Parts Damaged . | . . . . . . . . . . . Bothacking | -11 -10 -10 -10 -9 -8 -7 -7 -7 -7 -6 ------------ Run | Yrd Mat Min Exi Min Mat Fac Low Low Dat Pro Used RIF Installer . | . . . . . . . . . . . Robots Hacked . | . . . . . . . . . . . Non-combat . | . . . . . . . . . . . Combat . | . . . . . . . . . . . Robot Hacks Applied . | . . . . . . . . . . . Relay Couplers Released . | . . . . . . . . . . . Fabnet Peak Effective % . | . . . . . . . . . . . Robots Rewired . | . . . . . . . . . . . Allies Hacked . | . . . . . . . . . . . Hacks Repelled . | . . . . . . . . . . . Allies | -11 -10 -10 -10 -9 -8 -7 -7 -7 -7 -6 -------- Run | Yrd Mat Min Exi Min Mat Fac Low Low Dat Pro Total Allies 5 | . . 3 . . 1 1 . . . . Largest Group 3 | . . 3 1 1 1 1 . . . . Highest-Rated Group 40 | . . 40 16 16 10 26 . . . . Highest-Rated Ally 26 | . . 16 16 16 10 26 . . . . Total Orders . | . . . . . . . . . . . Ally Attacks 26 | . . 25 . 1 . . . . . . Total Damage 188 | . . 188 . . . . . . . . Kills 4 | . . 4 . . . . . . . . Allies Corrupted . | . . . . . . . . . . . Allies Melted . | . . . . . . . . . . . Intel | -11 -10 -10 -10 -9 -8 -7 -7 -7 -7 -6 ------- Run | Yrd Mat Min Exi Min Mat Fac Low Low Dat Pro Active Infowar (turns) 2275 | . . . . . 1 1264 527 457 26 . Optics 2249 | . . . . . . 1239 527 457 26 . Sensors 1 | . . . . . 1 . . . . . Terrain 25 | . . . . . . 25 . . . . Robot Analysis Total 154 | . . . . . . . . . 154 . Derelict Logs Recovered 6 | . . 1 . 2 . . 1 2 . . Drone Launches . | . . . . . . . . . . . Drone Recoveries . | . . . . . . . . . . . Exploration | -11 -10 -10 -10 -9 -8 -7 -7 -7 -7 -6 ------------- Run | Yrd Mat Min Exi Min Mat Fac Low Low Dat Pro Turns Passed 10527 | 2 2094 498 1003 1337 3235 1278 527 469 37 47 Spaces Moved 9596 | 2 901 253 513 608 1577 2808 1421 1290 90 133 Core 14 | . . . . . 14 . . . . . Treads 125 | . . . . . 125 . . . . . Legs 135 | 2 133 . . . . . . . . . Wheels 3580 | . 768 253 513 608 1438 . . . . . Hover . | . . . . . . . . . . . Flight 5742 | . . . . . . 2808 1421 1290 90 133 Fastest Speed 14 | 120 120 185 80 210 86 14 26 26 26 34 Average Speed 84 | 120 211 185 188 210 124 26 26 26 27 34 Slowest Speed 610 | 120 610 185 230 230 600 94 27 29 34 34 Overloaded Moves 10 | . . . . . . 10 . . . . Propulsion Burnouts . | . . . . . . . . . . . Robots Hopped 1 | . . . . . . . . . 1 . Potential Cave-ins . | . . . . . . . . . . . Cave-ins Triggered . | . . . . . . . . . . . Exploration Rate (%) 70 | 1 99 39 75 98 89 66 99 99 80 27 Regions Visited 10 Branch Regions 7 Pre-discovered Areas 30 | . 2 . 1 2 . . 1 1 23 . Known Exits Taken . | . . . . . . . . . . . Unknown Exits Taken 10 | 1 1 1 1 1 1 1 1 1 1 . Scrap Searched 9 | . . 1 . 3 . . 2 3 . . Spaces Dug 27 | . . . . . . 20 2 5 . . Terrain Destroyed 619 | . 86 65 . 37 283 45 61 42 . . Melee 27 | . . . . . . 20 2 5 . . Projectile . | . . . . . . . . . . . AOE 592 | . 86 65 . 37 283 25 59 37 . . Terrain Rammed . | . . . . . . . . . . . Walls Destroyed . | . . . . . . . . . . . Machines Disabled . | . . . . . . . . . . . Actions | -11 -10 -10 -10 -9 -8 -7 -7 -7 -7 -6 --------- Run | Yrd Mat Min Exi Min Mat Fac Low Low Dat Pro Total 11431 | 1 1015 269 563 654 2544 3234 1542 1379 96 134 Wait 1054 | . 4 . . 33 616 265 89 46 . 1 Move 9584 | 1 900 252 512 607 1576 2807 1420 1289 87 133 Hop 1 | . . . . . . . . . 1 . Pick Up 122 | . 23 1 25 4 35 22 3 4 5 . Fast Attach 36 | . 4 . 1 . 30 1 . . . . Attach 34 | . . 2 . . 10 13 2 6 1 . Detach 4 | . 1 1 . . 1 1 . . . . Swap 92 | . 12 1 . 1 52 18 4 4 . . Drop 76 | . 5 . 25 . 37 9 . . . . Fire 278 | . 66 12 . 8 162 12 13 5 . . Melee 122 | . . . . . 23 61 11 25 2 . Ram 3 | . . . . 1 2 . . . . . Kick . | . . . . . . . . . . . Crush . | . . . . . . . . . . . Escape Stasis 25 | . . . . . . 25 . . . . Rewire . | . . . . . . . . . . . Trap . | . . . . . . . . . . . Miscellaneous . | . . . . . . . . . . . Route ------- -11/Scrapyard -10/Materials (discovered 5 exits: *Mat x3 / [*Min] / [*Sub]) -10/Mines (discovered 3 exits: Mat / *Exi / [*Sub]) -10/Exiles -9/Mines (discovered 2 exits: *Mat x2) -8/Materials (discovered 3 exits: *Fac x3) -7/Factory -7/Lower Caves -7/Lower Caves (discovered 2 exits: [*Fac] / [*Dat]) -7/Data Miner -6/Proximity Caves History --------- Turn | Location | Event 1 | -11/Scrapyard | Discovered new exit (range 1) 3 | -11/Scrapyard | Entered Materials 468 | -10/Materials | Discovered new exit (range 7) 551 | -10/Materials | Build established: Hauler-Mutant 1209 | -10/Materials | Discovered new exit (range 11) 1390 | -10/Materials | Discovered new exit (range 15) 1636 | -10/Materials | Discovered new exit (range 15) 1884 | -10/Materials | Discovered new exit (range 15) 2097 | -10/Materials | Entered Mines 2098 | -10/Mines | Assembled infested the area 2103 | -10/Mines | Assisted by a Guerilla fighting off Assembled 2112 | -10/Mines | Identified exit to Materials 2112 | -10/Mines | Assisted by bots powering up and referring to "LRC-V3" 2173 | -10/Mines | Core integrity fell below 50% 2227 | -10/Mines | Destroyed 10 combat bots 2388 | -10/Mines | Deemed a non-threat by the Exiles lab entrance 2390 | -10/Mines | Discovered new exit (range 5) 2524 | -10/Mines | Discovered new exit (range 9) 2595 | -10/Mines | Entered Exiles 2595 | -10/Exiles | Accompanied by 1 ally 2642 | -10/Exiles | Met 8R-AWN 2668 | -10/Exiles | Met EX-HEX 2723 | -10/Exiles | Met EX-BIN 2749 | -10/Exiles | Aligned with FarCom system 2751 | -10/Exiles | Given EX-Vault access code 2793 | -10/Exiles | Opened EX-Vault 2819 | -10/Exiles | Found Lightpack 2.0 2863 | -10/Exiles | Warned to stay clear of 0b10 Research branches 2917 | -10/Exiles | Met EX-DEC 2986 | -10/Exiles | Visited The Gauntlet 3185 | -10/Exiles | Learned location of Zion (-6) 3398 | -10/Exiles | Discovered new exit (range 10) 3598 | -10/Exiles | Left Exiles lab with Lightpack 2.0 3598 | -10/Exiles | Entered Mines 3598 | -9/Mines | Accompanied by 1 ally 3628 | -9/Mines | Discovered new exit (range 14) 3781 | -9/Mines | Learned location of Storage (-7) 4016 | -9/Mines | Found a damaged Exp. Sensor Array with a note attached 4020 | -9/Mines | Found Prototype Device 4055 | -9/Mines | Learned Materials terminal intel 4236 | -9/Mines | Discovered new exit (range 11) 4600 | -9/Mines | Core integrity fell below 20% 4935 | -9/Mines | Entered Materials 4935 | -8/Materials | Evolved 4 slots: Propulsion x2, Utility x2 4936 | -8/Materials | Loaded intel: 12 terminal locations 5363 | -8/Materials | Lost 6 parts (1p4n1u) 5411 | -8/Materials | Discovered new exit (range 15) 5775 | -8/Materials | Lost 4 parts (1p1u2w) 5785 | -8/Materials | Identified Exp. Sensor Array 6038 | -8/Materials | Build established: Mutant 6181 | -8/Materials | Repaired Missile Launcher 6220 | -8/Materials | Repaired Imp. Heat Sink 6254 | -8/Materials | Repaired Med. Armor Plating 6422 | -8/Materials | Discovered new exit (range 10) 7749 | -8/Materials | Core integrity fell below 50% 7837 | -8/Materials | Lost 6 parts (4n2u) 8107 | -8/Materials | Discovered new exit (range 4) 8159 | -8/Materials | Core integrity fell below 20% 8170 | -8/Materials | Entered Factory 8170 | -7/Factory | Evolved 2 slots: Utility x2 8481 | -7/Factory | Build established: Hauler-Sprinter 8504 | -7/Factory | Identified exit to DSF 8830 | -7/Factory | Discovered new exit (range 18) 8888 | -7/Factory | Central database locked down 9448 | -7/Factory | Entered Lower Caves 9704 | -7/Lower Caves | Discovered new exit (range 3) 9783 | -7/Lower Caves | Encountered a Warlord checkpoint 9798 | -7/Lower Caves | Spotted B-75 Beast 9858 | -7/Lower Caves | Found DCF Scrap (12 items) 9975 | -7/Lower Caves | Entered another Lower Caves area 9983 | -7/Lower Caves | Discovered new exit (range 12) 9996 | -7/Lower Caves | Spotted B-75 Beast 10006 | -7/Lower Caves | Learned Factory emergency access door positions 10026 | -7/Lower Caves | Found DRS Beacon 10051 | -7/Lower Caves | Encountered a Warlord checkpoint 10052 | -7/Lower Caves | Learned location of Extension (-6) 10113 | -7/Lower Caves | Attracted the attention of an 0b10 checkpoint 10131 | -7/Lower Caves | Discovered new exit (range 10) 10288 | -7/Lower Caves | Lost 3 parts (1n2w) 10444 | -7/Lower Caves | Entered Data Miner 10444 | -7/Data Miner | Discovered new exit (range 6) 10448 | -7/Data Miner | Met Data Miner 10453 | -7/Data Miner | Destroyed Data Miner 10456 | -7/Data Miner | Found Prototype Hackware 10457 | -7/Data Miner | Interfaced with the Data Conduit 10459 | -7/Data Miner | Found Prototype Hackware 10461 | -7/Data Miner | Found Prototype Hackware 10479 | -7/Data Miner | Core integrity fell below 50% 10481 | -7/Data Miner | Entered Proximity Caves 10508 | -6/Proximity Caves | Lost 5 parts (1p3n1u) 10528 | -6/Proximity Caves | Self-destructed Last Messages --------------- Downloaded central machine database. Downloaded 23 destinations. Downloaded encryption format records. Connection remotely terminated. [Achievement: Unlimited Data] 10457_ Acquired Lgt. Angular Momentum Engine. 10459_ Acquired Prototype Hackware. 10460_ Acquired Gravmag Array. 10461_ Acquired Prototype Hackware. 10467_ ORACLE Interface disabled. 10470_ Adv. Visual Processing Unit destroyed. 10470_ Lgt. Nuclear Core destroyed. 10470_ VTOL Module destroyed. 10471_ Enhanced Grunt suffers critical hit (Impale). 10474_ Cld. VTOL Module destroyed. LOCATION=UNKNOWN GOAL=ESCAPE 10512_ 6K |D57SY7N<43H V:F# 10528_ VTOL Module destroyed. 10528_ Slug penetrates Wall. Map ----- +----------------------------------------------------+ | ?????????????????????????????????????????????????? | | ?????????????????????????????????????????????????? | | ?????????????????????????????????????????????????? | | ?????????????????????????????????????????????????? | | ?????????????????????????????????????????????????? | | ?????????????????????????????????????????????????? | | ?????????????????????????????????????????????????? | | ?????????????????????????????????????????????????? | | ?????????????????????????????????????????????????? | | ?????????????????????????????????????????????????? | | ?????????????????????????????????????????????????? | | ?????????????????????????????????????????????????? | | ??????????????????????????????????????? ??????? | | ?????????????????????????????????????? ?????? | | ?????????????????????????????????????? #?????? | | ?????????????????????????????????????? #?????? | | ?????????????????????????????????????? #?????? | | ??????????????????????????????????????# ##?#### | | ??????????????????????????????????????# ## # | | ??????????????????????????????????????? | | ??????????????????????????????????????? | | ???????????????????????????????????????# | | ??????????????????????????????????????## | | ??????????????????##?????????????????## #?? | | ?????????????????## #######?????#### #?? | | ????????????????## @ ####### #?? | | ????????????????# ## #?? | | ????????????????# #??? | | ???????????????# ##?? | | ????????????? #### #?? | | ???????????? ### ### ####??## ##? | | ???????????? # #" ?# ##?????## ## | | ???????????? #?#" ?# #?????## | | ?????????????# ???#"b#Y #????## | | ?????????????#### ????#"s## # #????# | | ????????????????#?????#"g? # ### #????# | | ???????????????????????""""""# #?###????# | | ???????????????????????##?####$?????????# | | ????????????????????????????? ?????????# #### | | ????????????????????????????? ???????### ##??? | | ????????????????????????????? ??????## #???? | | ????????????????? ?????????? ??????# ##???? | | ???????????????? #????????? ??????### ##????? | | ???????????????# #????????? ????????## #?????? | | ??????????????? #??????????????????# #?????# | | ??????????????? #?????????????????# #????# | | ??##????????????? ##???????????????# #???# | | ?? ##???######???? #??????????????## #??# | | ?# #???# ##???? ##????????????## #?# | | # #???# ##????# #???????????## #? | +----------------------------------------------------+ Best States ------------- Heat Dissipation 59 Energy Generation 15 Energy Capacity 275 Matter Stores 300 Matter Capacity 300 Sight Range 20 Terrain Scan Range 16 Terrain Scan Density 85 Base Temperature (-) 100 Armor Coverage 675 Evasion (%) 64 Recoil Reduction 4 Offensive Hacking 10 Defensive Hacking 10 Item Schematics ----------------- VTOL Module | -8/Materials | Scanalyzed Mni. Grenade Launcher | -8/Materials | Scanalyzed Cld. VTOL Module | -7/Factory | Scanalyzed Gauss Cannon | -7/Factory | Scanalyzed System Restoration Module | -7/Factory | Scanalyzed Gauss Rifle | -7/Factory | Scanalyzed Launcher Guidance Computer | -7/Factory | Scanalyzed Robot Schematics ------------------ None Fabricated ------------ Nothing Repaired ---------- Missile Launcher | 8% | -8/Materials Imp. Heat Sink | 10% | -8/Materials Med. Armor Plating | 12% | -8/Materials Studied --------- Lgt. Deuterium Engine | -7/Factory | Hacked Alien Tech Used ----------------- None Achievements -------------- Unlimited Data Challenges ------------ None Game ------ Seed ProcessingCatalystDetector Manual? 0 Play Time 01:27:13 Cumulative 199.8 hours Start 2025.12.18 @ 19:29:16 End 2025.12.18 @ 21:17:55 Sessions 1 Manual Loads 0 Difficulty Rogue Special Mode None Game No. 274 Rogue 273 Adventurer 1 Explorer 0 Win Type - Total 2 Types 1/0/0/1/0/0/0/0/0/0 Lore% 66 Gallery% 61 Achievement% 54 Wizard Run 0 Options --------- Layout 0 ASCII 0 Keyboard 0 Movement Numpad Keybinds 0 Fullscreen 1 Font 24/Smallcaps Map View 76x50 Zoom Use 0% Tactical HUD 1 Map Filters NONE Filters NONE Steam 1 RUN: e738d121-42b4-487a-bac6-51c937a543b8